[Event "Titled Tuesday Blitz September 27 Early 2022"]
[White "Dowgird, Filip"]
[Black "Xiong, Jeffery"]
[WhiteFideId "1121235"]
[BlackFideId "2047640"]
[WhiteElo "2215"]
[BlackElo "2714"]
[Result "0-1"]
[Round "01"]
[TimeControl "180+1"]
[Date "2022.09.27"]
[WhiteClock "0:00:51"]
[BlackClock "0:00:12"]

1. d4 {[%clk 0:03:00]}  Nf6 {[%clk 0:02:56]} 2. Bf4 {[%clk 0:02:59]}  c5 {[%clk 0:02:56]} 3. e3 {[%clk 0:02:59]}  Qb6 {[%clk 0:02:55]} 4. Na3 {[%clk 0:02:47]}  cxd4 {[%clk 0:02:33]} 5. Qxd4 {[%clk 0:02:37]}  Qd8 {[%clk 0:02:10]} 6. Nc4 {[%clk 0:02:30]}  d6 {[%clk 0:02:09]} 7. Bg5 {[%clk 0:02:25]}  Nc6 {[%clk 0:02:04]} 8. Qh4 {[%clk 0:02:25]}  Be6 {[%clk 0:01:55]} 9. O-O-O {[%clk 0:02:20]}  Rc8 {[%clk 0:01:52]} 10. Nf3 {[%clk 0:02:15]}  Qc7 {[%clk 0:01:52]} 11. Bxf6 {[%clk 0:02:08]}  exf6 {[%clk 0:01:38]} 12. c3 {[%clk 0:01:58]}  d5 {[%clk 0:01:19]} 13. Ncd2 {[%clk 0:01:52]}  Be7 {[%clk 0:01:20]} 14. Qg3 {[%clk 0:01:49]}  Qxg3 {[%clk 0:01:07]} 15. hxg3 {[%clk 0:01:49]}  Ne5 {[%clk 0:01:08]} 16. Nb3 {[%clk 0:01:44]}  Ng4 {[%clk 0:01:07]} 17. Rd2 {[%clk 0:01:45]}  O-O {[%clk 0:01:07]} 18. Nh2 {[%clk 0:01:39]}  Ne5 {[%clk 0:01:06]} 19. Nd4 {[%clk 0:01:34]}  a6 {[%clk 0:01:06]} 20. Nhf3 {[%clk 0:01:32]}  b5 {[%clk 0:01:06]} 21. Nxe5 {[%clk 0:01:30]}  fxe5 {[%clk 0:01:07]} 22. Nxe6 {[%clk 0:01:30]}  fxe6 {[%clk 0:01:07]} 23. Kb1 {[%clk 0:01:27]}  Rf6 {[%clk 0:01:03]} 24. f4 {[%clk 0:01:26]}  e4 {[%clk 0:00:58]} 25. g4 {[%clk 0:01:23]}  g5 {[%clk 0:00:57]} 26. g3 {[%clk 0:01:19]}  Bc5 {[%clk 0:00:57]} 27. Re2 {[%clk 0:01:19]}  Rcf8 {[%clk 0:00:56]} 28. Bg2 {[%clk 0:01:16]}  Rg6 {[%clk 0:00:57]} 29. Bh3 {[%clk 0:01:15]}  Rh6 {[%clk 0:00:57]} 30. Ree1 {[%clk 0:01:14]}  Kg7 {[%clk 0:00:56]} 31. Kc2 {[%clk 0:01:14]}  Kf7 {[%clk 0:00:55]} 32. a3 {[%clk 0:01:14]}  Ke7 {[%clk 0:00:55]} 33. Kd2 {[%clk 0:01:15]}  Kd6 {[%clk 0:00:55]} 34. Ke2 {[%clk 0:01:15]}  a5 {[%clk 0:00:55]} 35. Bg2 {[%clk 0:01:15]}  Rg6 {[%clk 0:00:51]} 36. Bh3 {[%clk 0:01:11]}  Rg7 {[%clk 0:00:51]} 37. Rb1 {[%clk 0:01:10]}  Ra8 {[%clk 0:00:49]} 38. Ra1 {[%clk 0:01:10]}  Rga7 {[%clk 0:00:42]} 39. Bg2 {[%clk 0:01:10]}  Rg8 {[%clk 0:00:40]} 40. Bh3 {[%clk 0:01:08]}  Rb7 {[%clk 0:00:40]} 41. Rhd1 {[%clk 0:01:08]}  Rb6 {[%clk 0:00:40]} 42. Rd2 {[%clk 0:01:08]}  Ke7 {[%clk 0:00:40]} 43. Rdd1 {[%clk 0:01:08]}  Rg6 {[%clk 0:00:40]} 44. b4 {[%clk 0:01:08]}  Bd6 {[%clk 0:00:40]} 45. bxa5 {[%clk 0:01:08]}  Ra6 {[%clk 0:00:40]} 46. a4 {[%clk 0:01:09]}  Rxa5 {[%clk 0:00:39]} 47. axb5 {[%clk 0:01:09]}  Rxb5 {[%clk 0:00:40]} 48. Rdb1 {[%clk 0:01:09]}  Rxb1 {[%clk 0:00:39]} 49. Rxb1 {[%clk 0:01:09]}  Rh6 {[%clk 0:00:40]} 50. Bg2 {[%clk 0:01:09]}  Rg6 {[%clk 0:00:34]} 51. Bh3 {[%clk 0:01:09]}  Kd7 {[%clk 0:00:34]} 52. Rb7+ {[%clk 0:01:09]}  Bc7 {[%clk 0:00:34]} 53. Ra7 {[%clk 0:01:08]}  Kc6 {[%clk 0:00:34]} 54. Ra8 {[%clk 0:01:02]}  Rh6 {[%clk 0:00:27]} 55. Bg2 {[%clk 0:01:02]}  Rg6 {[%clk 0:00:28]} 56. Bh3 {[%clk 0:01:02]}  Rg7 {[%clk 0:00:25]} 57. Re8 {[%clk 0:01:00]}  Kd7 {[%clk 0:00:25]} 58. Rh8 {[%clk 0:01:00]}  Bd6 {[%clk 0:00:24]} 59. Kd2 {[%clk 0:00:59]}  Kc6 {[%clk 0:00:25]} 60. Re8 {[%clk 0:00:58]}  Kd7 {[%clk 0:00:24]} 61. Rh8 {[%clk 0:00:58]}  Ke7 {[%clk 0:00:25]} 62. c4 {[%clk 0:00:57]}  Bb4+ {[%clk 0:00:22]} 63. Kc2 {[%clk 0:00:57]}  Bc5 {[%clk 0:00:22]} 64. cxd5 {[%clk 0:00:56]}  exd5 {[%clk 0:00:22]} 65. Kd2 {[%clk 0:00:57]}  Bb6 {[%clk 0:00:19]} 66. Ke2 {[%clk 0:00:57]}  Kd6 {[%clk 0:00:18]} 67. fxg5 {[%clk 0:00:56]}  Ra7 {[%clk 0:00:17]} 68. g6 {[%clk 0:00:55]}  hxg6 {[%clk 0:00:18]} 69. Rh6 {[%clk 0:00:54]}  Ra2+ {[%clk 0:00:18]} 70. Kf1 {[%clk 0:00:54]}  Bxe3 {[%clk 0:00:18]} 71. Rxg6+ {[%clk 0:00:54]}  Ke5 {[%clk 0:00:19]} 72. Rg8 {[%clk 0:00:54]}  Rf2+ {[%clk 0:00:15]} 73. Ke1 {[%clk 0:00:54]}  Rh2 {[%clk 0:00:15]} 74. Bf1 {[%clk 0:00:53]}  Bf2+ {[%clk 0:00:12]} 75. Kd1 {[%clk 0:00:53]}  Bxg3 {[%clk 0:00:13]} 76. g5 {[%clk 0:00:51]}  Bf4 {[%clk 0:00:13]} 77. g6 {[%clk 0:00:51]}  Kf6 {[%clk 0:00:11]} 78. Rd8 {[%clk 0:00:51]}  Rd2+ {[%clk 0:00:10]} 79. Ke1 {[%clk 0:00:51]}  Kxg6 {[%clk 0:00:11]} 80. Bc4 {[%clk 0:00:50]}  dxc4 {[%clk 0:00:10]} 81. Rxd2 {[%clk 0:00:50]}  Bxd2+ {[%clk 0:00:11]} 82. Kxd2 {[%clk 0:00:51]}  Kf5 {[%clk 0:00:11]} 83. Ke3 {[%clk 0:00:51]}  Ke5 {[%clk 0:00:12]} 0-1


[Site "https://www.chess.com"]

[Event "Titled Tuesday Blitz September 27 Early 2022"]
[White "Dudzinski, Pawel"]
[Black "Hardaway, Brewington"]
[WhiteFideId "1117890"]
[BlackFideId "30941849"]
[WhiteElo "1918"]
[BlackElo "1813"]
[Result "0-1"]
[Round "01"]
[TimeControl "180+1"]
[Date "2022.09.27"]
[WhiteClock "0:01:34"]
[BlackClock "0:02:13"]

1. e4 {[%clk 0:02:56]}  c5 {[%clk 0:02:59]} 2. Nc3 {[%clk 0:02:56]}  Nc6 {[%clk 0:02:58]} 3. g3 {[%clk 0:02:56]}  Nf6 {[%clk 0:02:56]} 4. Bg2 {[%clk 0:02:57]}  g6 {[%clk 0:02:57]} 5. d3 {[%clk 0:02:54]}  Bg7 {[%clk 0:02:57]} 6. h3 {[%clk 0:02:54]}  O-O {[%clk 0:02:56]} 7. f4 {[%clk 0:02:54]}  e6 {[%clk 0:02:49]} 8. e5 {[%clk 0:02:52]}  Ne8 {[%clk 0:02:48]} 9. Ne4 {[%clk 0:02:53]}  d5 {[%clk 0:02:46]} 10. exd6 {[%clk 0:02:52]}  Nxd6 {[%clk 0:02:46]} 11. Ne2 {[%clk 0:02:50]}  Nxe4 {[%clk 0:02:37]} 12. Bxe4 {[%clk 0:02:51]}  Qb6 {[%clk 0:02:37]} 13. c3 {[%clk 0:02:47]}  Rd8 {[%clk 0:02:35]} 14. Qb3 {[%clk 0:02:38]}  Qc7 {[%clk 0:02:33]} 15. Qc2 {[%clk 0:02:33]}  Nb8 {[%clk 0:02:31]} 16. Be3 {[%clk 0:02:31]}  Nd7 {[%clk 0:02:30]} 17. d4 {[%clk 0:02:26]}  Nf6 {[%clk 0:02:28]} 18. dxc5 {[%clk 0:02:17]}  Nxe4 {[%clk 0:02:27]} 19. Qxe4 {[%clk 0:02:18]}  Bd7 {[%clk 0:02:27]} 20. O-O {[%clk 0:02:04]}  Bc6 {[%clk 0:02:27]} 21. Qc4 {[%clk 0:02:04]}  a6 {[%clk 0:02:26]} 22. Qb4 {[%clk 0:01:53]}  Rd3 {[%clk 0:02:25]} 23. Bd4 {[%clk 0:01:45]}  Qd7 {[%clk 0:02:16]} 24. Rae1 {[%clk 0:01:34]}  Qd5 {[%clk 0:02:13]} 0-1


[Site "https://www.chess.com"]

[Event "Titled Tuesday Blitz September 27 Early 2022"]
[White "Erenberg, Ariel"]
[Black "Albertini, Luca"]
[WhiteFideId "2811634"]
[BlackFideId "847038"]
[WhiteElo "2243"]
[BlackElo "2207"]
[Result "1-0"]
[Round "01"]
[TimeControl "180+1"]
[Date "2022.09.27"]
[WhiteClock "0:00:21"]
[BlackClock "0:00:05"]

1. b3 {[%clk 0:03:00]}  Nf6 {[%clk 0:02:58]} 2. Bb2 {[%clk 0:03:01]}  e6 {[%clk 0:02:58]} 3. Nf3 {[%clk 0:03:00]}  d5 {[%clk 0:02:59]} 4. c4 {[%clk 0:02:59]}  Be7 {[%clk 0:02:59]} 5. g3 {[%clk 0:02:56]}  O-O {[%clk 0:02:59]} 6. Bg2 {[%clk 0:02:57]}  c6 {[%clk 0:02:59]} 7. O-O {[%clk 0:02:58]}  b6 {[%clk 0:02:59]} 8. d4 {[%clk 0:02:58]}  Ba6 {[%clk 0:02:59]} 9. Nbd2 {[%clk 0:02:58]}  Nbd7 {[%clk 0:03:00]} 10. Qc2 {[%clk 0:02:58]}  Rc8 {[%clk 0:03:00]} 11. e4 {[%clk 0:02:58]}  c5 {[%clk 0:02:51]} 12. e5 {[%clk 0:02:44]}  Ne8 {[%clk 0:02:50]} 13. Rfe1 {[%clk 0:02:31]}  cxd4 {[%clk 0:02:47]} 14. Nxd4 {[%clk 0:02:27]}  Qc7 {[%clk 0:02:29]} 15. Rac1 {[%clk 0:02:21]}  Qb8 {[%clk 0:02:28]} 16. Qb1 {[%clk 0:02:13]}  Bb4 {[%clk 0:02:28]} 17. Rcd1 {[%clk 0:02:06]}  Nxe5 {[%clk 0:02:25]} 18. Nxe6 {[%clk 0:01:55]}  fxe6 {[%clk 0:02:14]} 19. Bxe5 {[%clk 0:01:55]}  Bd6 {[%clk 0:02:14]} 20. Bxd6 {[%clk 0:01:52]}  Qxd6 {[%clk 0:02:15]} 21. cxd5 {[%clk 0:01:52]}  exd5 {[%clk 0:02:14]} 22. Nc4 {[%clk 0:01:39]}  Qc5 {[%clk 0:01:42]} 23. Bxd5+ {[%clk 0:01:36]}  Kh8 {[%clk 0:01:43]} 24. Ne3 {[%clk 0:01:25]}  Nf6 {[%clk 0:01:40]} 25. Bg2 {[%clk 0:01:17]}  Qh5 {[%clk 0:01:32]} 26. h3 {[%clk 0:01:12]}  Rb8 {[%clk 0:00:58]} 27. Rd4 {[%clk 0:01:11]}  Bb7 {[%clk 0:00:58]} 28. Rh4 {[%clk 0:01:10]}  Qf7 {[%clk 0:00:58]} 29. Ng4 {[%clk 0:01:01]}  h6 {[%clk 0:00:55]} 30. Ne5 {[%clk 0:01:00]}  Qc7 {[%clk 0:00:38]} 31. Ng6+ {[%clk 0:00:59]}  Kg8 {[%clk 0:00:39]} 32. Nxf8 {[%clk 0:00:52]}  Rxf8 {[%clk 0:00:40]} 33. Bxb7 {[%clk 0:00:49]}  Qxb7 {[%clk 0:00:40]} 34. Rf4 {[%clk 0:00:50]}  Qd7 {[%clk 0:00:38]} 35. Qf5 {[%clk 0:00:45]}  Qd2 {[%clk 0:00:32]} 36. Qe6+ {[%clk 0:00:45]}  Kh8 {[%clk 0:00:29]} 37. Qe2 {[%clk 0:00:44]}  Qd7 {[%clk 0:00:28]} 38. Kh2 {[%clk 0:00:35]}  Re8 {[%clk 0:00:27]} 39. Qd1 {[%clk 0:00:32]}  Rxe1 {[%clk 0:00:15]} 40. Qxe1 {[%clk 0:00:31]}  Qd6 {[%clk 0:00:15]} 41. Qe3 {[%clk 0:00:28]}  Qa3 {[%clk 0:00:15]} 42. Qd2 {[%clk 0:00:27]}  Qc5 {[%clk 0:00:14]} 43. Qd8+ {[%clk 0:00:24]}  Kh7 {[%clk 0:00:14]} 44. Qd3+ {[%clk 0:00:21]}  Kh8 {[%clk 0:00:14]} 45. Qd8+ {[%clk 0:00:20]}  Kh7 {[%clk 0:00:14]} 46. Rxf6 {[%clk 0:00:21]}  gxf6 {[%clk 0:00:13]} 47. Qxf6 {[%clk 0:00:22]}  Qc2 {[%clk 0:00:12]} 48. Qf7+ {[%clk 0:00:21]}  Kh8 {[%clk 0:00:12]} 49. a4 {[%clk 0:00:21]}  a5 {[%clk 0:00:11]} 50. h4 {[%clk 0:00:21]}  Qe2 {[%clk 0:00:09]} 51. h5 {[%clk 0:00:21]}  Qd2 {[%clk 0:00:09]} 52. Qe8+ {[%clk 0:00:20]}  Kg7 {[%clk 0:00:08]} 53. Qg6+ {[%clk 0:00:20]}  Kf8 {[%clk 0:00:07]} 54. Qxb6 {[%clk 0:00:21]}  Qd6 {[%clk 0:00:05]} 55. Qxd6+ {[%clk 0:00:21]} 1-0


[Site "https://www.chess.com"]

[Event "Titled Tuesday Blitz September 27 Early 2022"]
[White "Ferguson, Randal"]
[Black "Aggelis, Nikolaos"]
[WhiteFideId "30903106"]
[BlackFideId "4213220"]
[WhiteElo "2071"]
[BlackElo "2154"]
[Result "0-1"]
[Round "01"]
[TimeControl "180+1"]
[Date "2022.09.27"]
[WhiteClock "0:01:18"]
[BlackClock "0:02:13"]

1. e4 {[%clk 0:02:58]}  c6 {[%clk 0:02:43]} 2. c4 {[%clk 0:02:58]}  d5 {[%clk 0:02:44]} 3. exd5 {[%clk 0:02:58]}  cxd5 {[%clk 0:02:44]} 4. cxd5 {[%clk 0:02:59]}  Nf6 {[%clk 0:02:45]} 5. Qa4+ {[%clk 0:02:59]}  Nbd7 {[%clk 0:02:39]} 6. Nc3 {[%clk 0:02:59]}  g6 {[%clk 0:02:39]} 7. Nf3 {[%clk 0:02:58]}  Bg7 {[%clk 0:02:40]} 8. Bc4 {[%clk 0:02:59]}  O-O {[%clk 0:02:40]} 9. Qb3 {[%clk 0:02:59]}  Nb6 {[%clk 0:02:39]} 10. d3 {[%clk 0:02:59]}  Bg4 {[%clk 0:02:37]} 11. Ne5 {[%clk 0:02:59]}  Bf5 {[%clk 0:02:36]} 12. Be3 {[%clk 0:02:56]}  Nfd7 {[%clk 0:02:35]} 13. Nf3 {[%clk 0:02:38]}  Rc8 {[%clk 0:02:32]} 14. Rc1 {[%clk 0:02:26]}  Nc5 {[%clk 0:02:30]} 15. Qa3 {[%clk 0:02:12]}  Nxc4 {[%clk 0:02:23]} 16. dxc4 {[%clk 0:02:05]}  Nd3+ {[%clk 0:02:23]} 17. Ke2 {[%clk 0:02:04]}  Nxc1+ {[%clk 0:02:24]} 18. Rxc1 {[%clk 0:02:04]}  Rxc4 {[%clk 0:02:24]} 19. Qxa7 {[%clk 0:01:44]}  Bxc3 {[%clk 0:02:21]} 20. Rxc3 {[%clk 0:01:39]}  Rxc3 {[%clk 0:02:21]} 21. bxc3 {[%clk 0:01:39]}  Qxd5 {[%clk 0:02:21]} 22. Nd4 {[%clk 0:01:35]}  Rc8 {[%clk 0:02:15]} 23. Nxf5 {[%clk 0:01:30]}  gxf5 {[%clk 0:02:13]} 24. Qa4 {[%clk 0:01:23]}  Qc4+ {[%clk 0:02:12]} 25. Qxc4 {[%clk 0:01:22]}  Rxc4 {[%clk 0:02:13]} 26. Kd3 {[%clk 0:01:18]}  Ra4 {[%clk 0:02:13]} 0-1


[Site "https://www.chess.com"]

[Event "Titled Tuesday Blitz September 27 Early 2022"]
[White "Fries-Nielsen, Jens Ove"]
[Black "Svane, Rasmus"]
[WhiteFideId "1400142"]
[BlackFideId "4657101"]
[WhiteElo "2525"]
[BlackElo "2674"]
[Result "0-1"]
[Round "01"]
[TimeControl "180+1"]
[Date "2022.09.27"]
[WhiteClock "0:00:58"]
[BlackClock "0:00:09"]

1. Nf3 {[%clk 0:02:58]}  d5 {[%clk 0:02:59]} 2. g3 {[%clk 0:02:58]}  Nf6 {[%clk 0:02:57]} 3. Bg2 {[%clk 0:02:58]}  e6 {[%clk 0:02:57]} 4. O-O {[%clk 0:02:58]}  Be7 {[%clk 0:02:58]} 5. d3 {[%clk 0:02:58]}  O-O {[%clk 0:02:58]} 6. b3 {[%clk 0:02:58]}  c5 {[%clk 0:02:55]} 7. Bb2 {[%clk 0:02:57]}  Nc6 {[%clk 0:02:55]} 8. Nbd2 {[%clk 0:02:57]}  Qc7 {[%clk 0:02:41]} 9. e3 {[%clk 0:02:53]}  e5 {[%clk 0:02:38]} 10. c4 {[%clk 0:02:52]}  d4 {[%clk 0:02:31]} 11. e4 {[%clk 0:02:51]}  a6 {[%clk 0:02:21]} 12. Nh4 {[%clk 0:02:48]}  Bd6 {[%clk 0:02:11]} 13. Bf3 {[%clk 0:02:48]}  g6 {[%clk 0:01:57]} 14. Be2 {[%clk 0:02:46]}  Bh3 {[%clk 0:01:56]} 15. Ng2 {[%clk 0:02:45]}  Nd7 {[%clk 0:01:49]} 16. Nf3 {[%clk 0:02:43]}  f6 {[%clk 0:01:46]} 17. Nfh4 {[%clk 0:02:41]}  f5 {[%clk 0:01:21]} 18. exf5 {[%clk 0:02:35]}  gxf5 {[%clk 0:01:22]} 19. f4 {[%clk 0:02:35]}  e4 {[%clk 0:01:18]} 20. dxe4 {[%clk 0:02:33]}  fxe4 {[%clk 0:01:18]} 21. Bg4 {[%clk 0:02:33]}  Bxg4 {[%clk 0:01:07]} 22. Qxg4+ {[%clk 0:02:32]}  Kh8 {[%clk 0:01:07]} 23. Rae1 {[%clk 0:02:25]}  Nf6 {[%clk 0:01:07]} 24. Qg5 {[%clk 0:02:24]}  Rae8 {[%clk 0:00:58]} 25. Nf5 {[%clk 0:02:23]}  Qd7 {[%clk 0:00:42]} 26. Ngh4 {[%clk 0:02:15]}  Bc7 {[%clk 0:00:37]} 27. Qh6 {[%clk 0:02:12]}  Qf7 {[%clk 0:00:37]} 28. Qg5 {[%clk 0:02:01]}  Qg8 {[%clk 0:00:28]} 29. Nh6 {[%clk 0:01:49]}  Qxg5 {[%clk 0:00:26]} 30. fxg5 {[%clk 0:01:49]}  Nd7 {[%clk 0:00:23]} 31. g6 {[%clk 0:01:38]}  Rxf1+ {[%clk 0:00:10]} 32. Rxf1 {[%clk 0:01:37]}  Nde5 {[%clk 0:00:10]} 33. Nf7+ {[%clk 0:01:25]}  Kg7 {[%clk 0:00:10]} 34. Nxe5 {[%clk 0:01:04]}  Nxe5 {[%clk 0:00:11]} 35. gxh7 {[%clk 0:01:03]}  Kxh7 {[%clk 0:00:10]} 36. Nf5 {[%clk 0:00:58]}  Nd3 {[%clk 0:00:09]} 0-1


[Site "https://www.chess.com"]

[Event "Titled Tuesday Blitz September 27 Early 2022"]
[White "Gabdrakhmanov, Azat"]
[Black "Stanisz, Patryk"]
[WhiteFideId "34189197"]
[BlackFideId "1123106"]
[WhiteElo "2233"]
[BlackElo "1833"]
[Result "1-0"]
[Round "01"]
[TimeControl "180+1"]
[Date "2022.09.27"]
[WhiteClock "0:00:13"]
[BlackClock "0:00:02"]

1. e4 {[%clk 0:02:57]}  c5 {[%clk 0:03:00]} 2. Nf3 {[%clk 0:02:57]}  Nc6 {[%clk 0:03:00]} 3. d4 {[%clk 0:02:57]}  cxd4 {[%clk 0:03:00]} 4. Nxd4 {[%clk 0:02:58]}  Nf6 {[%clk 0:03:00]} 5. Nc3 {[%clk 0:02:58]}  e5 {[%clk 0:03:01]} 6. Ndb5 {[%clk 0:02:59]}  d6 {[%clk 0:03:01]} 7. Bg5 {[%clk 0:02:59]}  a6 {[%clk 0:03:01]} 8. Na3 {[%clk 0:02:59]}  b5 {[%clk 0:03:02]} 9. Bxf6 {[%clk 0:02:55]}  gxf6 {[%clk 0:03:01]} 10. Nd5 {[%clk 0:02:56]}  Bg7 {[%clk 0:03:01]} 11. c3 {[%clk 0:02:56]}  Ne7 {[%clk 0:03:01]} 12. Nxe7 {[%clk 0:02:39]}  Qxe7 {[%clk 0:03:02]} 13. Bd3 {[%clk 0:02:38]}  f5 {[%clk 0:03:02]} 14. O-O {[%clk 0:02:29]}  O-O {[%clk 0:02:42]} 15. Re1 {[%clk 0:02:20]}  f4 {[%clk 0:02:37]} 16. Nc2 {[%clk 0:02:20]}  Qg5 {[%clk 0:02:14]} 17. f3 {[%clk 0:02:04]}  h5 {[%clk 0:02:02]} 18. Nb4 {[%clk 0:01:50]}  Be6 {[%clk 0:01:56]} 19. a4 {[%clk 0:01:48]}  h4 {[%clk 0:01:48]} 20. axb5 {[%clk 0:01:41]}  axb5 {[%clk 0:01:49]} 21. Bxb5 {[%clk 0:01:41]}  h3 {[%clk 0:01:47]} 22. Re2 {[%clk 0:01:41]}  Qh5 {[%clk 0:01:16]} 23. Nd5 {[%clk 0:01:06]}  Rxa1 {[%clk 0:00:50]} 24. Qxa1 {[%clk 0:01:03]}  Bxd5 {[%clk 0:00:50]} 25. exd5 {[%clk 0:01:03]}  hxg2 {[%clk 0:00:51]} 26. Rf2 {[%clk 0:00:59]}  Bf6 {[%clk 0:00:48]} 27. Be2 {[%clk 0:00:55]}  Kh8 {[%clk 0:00:41]} 28. Rxg2 {[%clk 0:00:54]}  e4 {[%clk 0:00:40]} 29. Qf1 {[%clk 0:00:45]}  Qxd5 {[%clk 0:00:25]} 30. fxe4 {[%clk 0:00:40]}  Qxe4 {[%clk 0:00:22]} 31. Bf3 {[%clk 0:00:38]}  Qe3+ {[%clk 0:00:20]} 32. Kh1 {[%clk 0:00:38]}  Rg8 {[%clk 0:00:18]} 33. Re2 {[%clk 0:00:26]}  Qc5 {[%clk 0:00:08]} 34. Qh3+ {[%clk 0:00:24]}  Kg7 {[%clk 0:00:07]} 35. Rg2+ {[%clk 0:00:23]}  Bg5 {[%clk 0:00:08]} 36. Qh5 {[%clk 0:00:15]}  Kf8 {[%clk 0:00:06]} 37. h4 {[%clk 0:00:15]}  Qe3 {[%clk 0:00:02]} 38. hxg5 {[%clk 0:00:14]}  Qe1+ {[%clk 0:00:03]} 39. Kh2 {[%clk 0:00:13]}  Qe3 {[%clk 0:00:01]} 40. Qh6+ {[%clk 0:00:13]}  Ke8 {[%clk 0:00:02]} 41. Re2 {[%clk 0:00:13]} 1-0


[Site "https://www.chess.com"]

[Event "Titled Tuesday Blitz September 27 Early 2022"]
[White "Gilmanov, Mansur"]
[Black "Bluebaum, Matthias"]
[WhiteFideId "4166868"]
[BlackFideId "24651516"]
[WhiteElo "2377"]
[BlackElo "2633"]
[Result "1-0"]
[Round "01"]
[TimeControl "180+1"]
[Date "2022.09.27"]
[WhiteClock "0:00:12"]
[BlackClock "0:01:35"]

1. d4 {[%clk 0:03:00]}  Nf6 {[%clk 0:03:00]} 2. Bg5 {[%clk 0:03:01]}  d5 {[%clk 0:03:00]} 3. e3 {[%clk 0:03:01]}  c5 {[%clk 0:03:00]} 4. c3 {[%clk 0:03:01]}  Nc6 {[%clk 0:03:00]} 5. Nd2 {[%clk 0:03:02]}  cxd4 {[%clk 0:03:00]} 6. exd4 {[%clk 0:03:02]}  h6 {[%clk 0:03:01]} 7. Bxf6 {[%clk 0:03:01]}  gxf6 {[%clk 0:03:02]} 8. Ngf3 {[%clk 0:03:02]}  e5 {[%clk 0:03:02]} 9. dxe5 {[%clk 0:02:50]}  fxe5 {[%clk 0:03:03]} 10. Bb5 {[%clk 0:02:50]}  Bg7 {[%clk 0:02:58]} 11. O-O {[%clk 0:02:41]}  O-O {[%clk 0:02:57]} 12. Qa4 {[%clk 0:02:31]}  Bd7 {[%clk 0:02:49]} 13. Qh4 {[%clk 0:01:55]}  e4 {[%clk 0:02:39]} 14. Qxd8 {[%clk 0:01:50]}  Raxd8 {[%clk 0:02:40]} 15. Bxc6 {[%clk 0:01:51]}  bxc6 {[%clk 0:02:39]} 16. Nd4 {[%clk 0:01:45]}  Rb8 {[%clk 0:02:20]} 17. N2b3 {[%clk 0:01:39]}  Rfc8 {[%clk 0:02:16]} 18. Nc5 {[%clk 0:01:38]}  Be8 {[%clk 0:02:13]} 19. Rab1 {[%clk 0:01:31]}  a5 {[%clk 0:02:06]} 20. Nf5 {[%clk 0:01:16]}  Bf8 {[%clk 0:02:05]} 21. b4 {[%clk 0:01:10]}  axb4 {[%clk 0:01:55]} 22. cxb4 {[%clk 0:01:11]}  Ra8 {[%clk 0:01:55]} 23. a4 {[%clk 0:01:11]}  Kh7 {[%clk 0:01:44]} 24. Rfc1 {[%clk 0:00:57]}  Kg6 {[%clk 0:01:44]} 25. g4 {[%clk 0:00:56]}  Kf6 {[%clk 0:01:42]} 26. a5 {[%clk 0:00:52]}  h5 {[%clk 0:01:42]} 27. h3 {[%clk 0:00:52]}  hxg4 {[%clk 0:01:43]} 28. hxg4 {[%clk 0:00:53]}  Kg5 {[%clk 0:01:43]} 29. Nd4 {[%clk 0:00:21]}  Kxg4 {[%clk 0:01:43]} 30. Rb3 {[%clk 0:00:21]}  Kf4 {[%clk 0:01:43]} 31. Rh3 {[%clk 0:00:17]}  Ke5 {[%clk 0:01:42]} 32. Rd1 {[%clk 0:00:05]}  f5 {[%clk 0:01:40]} 33. Rh8 {[%clk 0:00:03]}  Bg7 {[%clk 0:01:36]} 34. Rh7 {[%clk 0:00:03]}  Bf6 {[%clk 0:01:31]} 35. Nde6 {[%clk 0:00:02]}  Bg6 {[%clk 0:01:30]} 36. Rh6 {[%clk 0:00:02]}  Rg8 {[%clk 0:01:30]} 37. Kf1 {[%clk 0:00:02]}  f4 {[%clk 0:01:25]} 38. Nd4 {[%clk 0:00:02]}  Kd6 {[%clk 0:01:25]} 39. Nb7+ {[%clk 0:00:01]}  Kc7 {[%clk 0:01:25]} 40. Nc5 {[%clk 0:00:01]}  f3 {[%clk 0:01:24]} 41. Nde6+ {[%clk 0:00:02]}  Kd6 {[%clk 0:01:14]} 42. Nf4 {[%clk 0:00:02]}  Bg5 {[%clk 0:01:15]} 43. Rxg6+ {[%clk 0:00:02]}  Rxg6 {[%clk 0:01:16]} 44. Nxg6 {[%clk 0:00:03]}  Rg8 {[%clk 0:01:17]} 45. Nxe4+ {[%clk 0:00:04]}  Kc7 {[%clk 0:01:16]} 46. Nxg5 {[%clk 0:00:03]}  Rxg6 {[%clk 0:01:17]} 47. Nxf3 {[%clk 0:00:04]}  Rf6 {[%clk 0:01:18]} 48. Nd4 {[%clk 0:00:04]}  Kb7 {[%clk 0:01:18]} 49. Rc1 {[%clk 0:00:04]}  Rf4 {[%clk 0:01:18]} 50. Nxc6 {[%clk 0:00:03]}  d4 {[%clk 0:01:19]} 51. Rc4 {[%clk 0:00:02]}  Rh4 {[%clk 0:01:18]} 52. Rxd4 {[%clk 0:00:02]}  Rh1+ {[%clk 0:01:19]} 53. Kg2 {[%clk 0:00:03]}  Rh6 {[%clk 0:01:19]} 54. Ne5 {[%clk 0:00:03]}  Rh5 {[%clk 0:01:19]} 55. Ng4 {[%clk 0:00:04]}  Rg5 {[%clk 0:01:19]} 56. Rf4 {[%clk 0:00:04]}  Ka6 {[%clk 0:01:20]} 57. Kg3 {[%clk 0:00:05]}  Rg8 {[%clk 0:01:21]} 58. f3 {[%clk 0:00:06]}  Kb5 {[%clk 0:01:22]} 59. Rf5+ {[%clk 0:00:06]}  Kxb4 {[%clk 0:01:22]} 60. a6 {[%clk 0:00:07]}  Ra8 {[%clk 0:01:22]} 61. Rf6 {[%clk 0:00:07]}  Kc5 {[%clk 0:01:23]} 62. f4 {[%clk 0:00:08]}  Kd5 {[%clk 0:01:23]} 63. Kh4 {[%clk 0:00:06]}  Ke4 {[%clk 0:01:24]} 64. Kg5 {[%clk 0:00:07]}  Rg8+ {[%clk 0:01:25]} 65. Rg6 {[%clk 0:00:07]}  Ra8 {[%clk 0:01:26]} 66. f5 {[%clk 0:00:08]}  Kd5 {[%clk 0:01:25]} 67. Re6 {[%clk 0:00:08]}  Rg8+ {[%clk 0:01:25]} 68. Kf4 {[%clk 0:00:08]}  Rb8 {[%clk 0:01:26]} 69. Nf6+ {[%clk 0:00:09]}  Kc5 {[%clk 0:01:26]} 70. Ke5 {[%clk 0:00:10]}  Rb5 {[%clk 0:01:26]} 71. Rd6 {[%clk 0:00:09]}  Kc4+ {[%clk 0:01:25]} 72. Ke6 {[%clk 0:00:09]}  Ra5 {[%clk 0:01:25]} 73. Nd7 {[%clk 0:00:09]}  Ra1 {[%clk 0:01:25]} 74. f6 {[%clk 0:00:09]}  Re1+ {[%clk 0:01:26]} 75. Ne5+ {[%clk 0:00:10]}  Kc5 {[%clk 0:01:27]} 76. f7 {[%clk 0:00:09]}  Rf1 {[%clk 0:01:28]} 77. Rd8 {[%clk 0:00:09]}  Kb5 {[%clk 0:01:28]} 78. f8=Q {[%clk 0:00:09]}  Rxf8 {[%clk 0:01:29]} 79. Rxf8 {[%clk 0:00:10]}  Kxa6 {[%clk 0:01:30]} 80. Rb8 {[%clk 0:00:10]}  Ka5 {[%clk 0:01:30]} 81. Rb1 {[%clk 0:00:11]}  Ka4 {[%clk 0:01:31]} 82. Kd5 {[%clk 0:00:12]}  Ka3 {[%clk 0:01:32]} 83. Kc4 {[%clk 0:00:12]}  Ka2 {[%clk 0:01:33]} 84. Rb8 {[%clk 0:00:13]}  Ka3 {[%clk 0:01:34]} 85. Nc6 {[%clk 0:00:13]}  Ka2 {[%clk 0:01:34]} 86. Kc3 {[%clk 0:00:12]}  Ka3 {[%clk 0:01:35]} 87. Ra8# {[%clk 0:00:12]} 1-0


[Site "https://www.chess.com"]